Cogmind - Beta 13 @@@ ROGUE MODE // 2024.05.19 @ 22:12:46 Player: Lunace Result: Destroyed by as-45301 with Assembled F-torch Performance ------------- Evolutions (0) 0 Regions Visited (2) 400 Robots Destroyed (12) 60 Value Destroyed (223) 223 Prototype IDs (0) 0 Alien Tech Used (0) 0 Bonus (0) 0 TOTAL SCORE: 683 Bonus ------- None Cogmind --------- Core Integrity 0/250 Matter 268/300 Energy 100/100 System Corruption 0% Temperature Warm (120) Movement Core (200) Ox3 Location -10/Mines Parts ------- > --- POWER (1) -------- (None) > --- PROPULSION (2) --- (None) > --- UTILITY (2) ------ Medium Storage Unit Signal Interpreter > --- WEAPON (2) ------- Assault Rifle > --- INVENTORY (10) --- Ion Engine Large Storage Unit EM Pulse Gun Signal Generator Peak State ------------ > --- POWER ------------ Ion Engine > --- PROPULSION ------- Aluminum Leg Aluminum Leg > --- UTILITY ---------- Medium Storage Unit Signal Interpreter > --- WEAPON ----------- Assault Rifle Assault Rifle > --- INVENTORY -------- Ion Engine Ion Engine Large Storage Unit EM Pulse Gun Assault Rifle Assault Rifle Signal Generator [Rating: 8] Favorites ----------- Power Ion Engine Engine Ion Engine Propulsion Aluminum Leg Leg Aluminum Leg Utility Medium Storage Unit Device Terrain Scanner Storage Medium Storage Unit Processor Signal Interpreter Weapon Assault Rifle Ballistic Gun Assault Rifle Build | -11 -10 -10 ------- Run | Yrd Mat Min Slots Evolved . | . . . Power . | . . . Propulsion . | . . . Utility . | . . . Weapon . | . . . Parts Attached 17 | 6 8 3 Power 3 | 1 1 1 Engine 3 | 1 1 1 Core . | . . . Reactor . | . . . Propulsion 5 | 2 3 . Treads . | . . . Leg 5 | 2 3 . Wheel . | . . . Hover . | . . . Flight . | . . . Utility 4 | 1 3 . Device 1 | . 1 . Storage 2 | 1 1 . Processor 1 | . 1 . Hackware . | . . . Protection . | . . . Artifact . | . . . Weapon 5 | 2 1 2 Energy Gun . | . . . Energy Cannon . | . . . Ballistic Gun 5 | 2 1 2 Ballistic Cannon . | . . . Launcher . | . . . Special Weapon . | . . . Impact Weapon . | . . . Slashing Weapon . | . . . Piercing Weapon . | . . . Special Melee Weapon . | . . . Unidentified Prototypes . | . . . Parts Lost 7 | . . 7 Power 2 | . . 2 Propulsion 2 | . . 2 Utility . | . . . Weapon 3 | . . 3 Highest Loss Streak 7 | . . 7 To Critical Strikes . | . . . Average Slot Usage (%) 95 | . 96 92 Engine 14 | . 14 14 Leg 26 | . 27 22 Device 7 | . 7 . Storage 14 | . 14 14 Processor 4 | . 3 14 Ballistic Gun 27 | . 27 26 Naked Turns . | . . . Heaviest Build 20 | 14 20 19 Greatest Support 20 | 20 20 20 Greatest Overweight (x) 1 | 1 1 . Average Overweight (x) . | . . . Largest Inventory Capacity 10 | 8 10 10 Average Capacity 9 | 7 9 10 Most Carried 7 | 2 6 7 Average Carried 4 | . 4 6 Final Capacity 10 | 8 10 10 Final Carried 6 | 2 6 4 Class Distribution -------------------- 100% | Mutant Dominant Class ---------------- Mutant | -10/Materials Mutant | -10/Mines Resources | -11 -10 -10 ----------- Run | Yrd Mat Min Matter Collected 560 | 228 328 4 Remotely . | . . . Salvage Created 340 | . 306 34 Parts 21 | . 21 . Haulers Intercepted . | . . . Recyclers Shooed 1 | . 1 . Parts Field Recycled . | . . . Retrieved Matter . | . . . Parts Self-Destructed . | . . . Prevented . | . . . Kills | -11 -10 -10 ------- Run | Yrd Mat Min Combat Hostiles Destroyed 11 | . 9 2 Guns 11 | . 9 2 Classes Destroyed 5 | . 4 1 Recycler 1 | . 1 . Watcher 2 | . 2 . Swarmer 6 | . 6 . Grunt 3 | . 3 . Assembled 2 | . . 2 Best Kill Streak 5 | . 5 2 Combat Bots Only 4 | . 4 2 Max Kills in Single Turn 1 | . 1 1 Gunslinging . | . . . Exploded . | . . . Melee . | . . . Uniques/NPCs Destroyed . | . . . Combat | -11 -10 -10 -------- Run | Yrd Mat Min Hostile Shots Fired 116 | . 60 56 Missed 31 | . 18 13 Damage Taken 1143 | . 441 702 Core 260 | . 80 180 Absorbed by Shields . | . . . Regen/Repaired (Parts) 73 | . 73 . Core Remaining (%) 100 | 100 . . Volleys Fired 42 | . 36 6 Largest 2 | . 2 2 Hottest 40 | . 40 40 Shots Fired 84 | . 72 12 Gun 84 | . 72 12 Cannon . | . . . Launcher . | . . . Special . | . . . Kinetic 84 | . 72 12 Thermal . | . . . Explosive . | . . . Electromagnetic . | . . . Robot Hit Streak 5 | . 4 5 Robot Miss Streak 7 | . 7 2 Penetration Max . | . . . Secondary Targets 1 | . 1 . Max Gunslinging Chain 1 | . 1 . Shots Hit Robots 42 | . 34 8 Core Hits 20 | . 16 4 Critical Kills . | . . . Critical Parts Destroyed . | . . . Critical Strikes . | . . . Melee Attacks . | . . . Impact . | . . . Slashing . | . . . Piercing . | . . . Sneak Attacks . | . . . Combat Hostiles . | . . . Follow-up Attacks . | . . . Damage Inflicted 568 | . 436 132 Guns 568 | . 436 132 Cannons . | . . . Explosions . | . . . Melee . | . . . Ramming . | . . . Kinetic 568 | . 436 132 Thermal . | . . . Explosive . | . . . Electromagnetic . | . . . Impact . | . . . Slashing . | . . . Piercing . | . . . Highest Corruption . | . . . Average Corruption . | . . . Corruption Purged . | . . . Corruption Blocked . | . . . Overload Shots . | . . . Overflow Damage . | . . . Projectiles . | . . . Explosions . | . . . Melee . | . . . Knockbacks . | . . . Impact . | . . . Kinetic . | . . . Secondary . | . . . Self-Inflicted Damage . | . . . Shots . | . . . Rammed . | . . . Targets Rammed . | . . . Kicked . | . . . Crushed . | . . . Highest Temperature 100 | . 10 100 Average Temperature 20 | . 3 37 Received Heat Transfer 425 | . 165 260 Siege Activations . | . . . Robots Corrupted . | . . . Combat Hostiles . | . . . Parts Fried . | . . . Impact Corruptions . | . . . Robots Melted . | . . . Combat Hostiles . | . . . Parts Melted . | . . . Heat Transferred . | . . . Parts Sabotaged . | . . . Parts Stolen . | . . . Parts Stripped . | . . . Power Chain Reactions . | . . . Alert | -11 -10 -10 ------- Run | Yrd Mat Min Peak Influence 173 | . 173 82 Initial 67 | . . 67 Average 64 | . 70 56 Maximum Alert Level . | . . . Low Security (%) 100 | 100 100 100 Level 1 . | . . . Level 2 . | . . . Level 3 . | . . . Level 4 . | . . . Level 5 . | . . . High Security . | . . . Max Security . | . . . Squads Dispatched 1 | . . 1 Investigation . | . . . Extermination . | . . . Reinforcement . | . . . Assault 1 | . . 1 Garrison . | . . . Intercept . | . . . Searches Triggered . | . . . Construction Impeded . | . . . Haulers Reinforced . | . . . Active Scanning Responses . | . . . Cargo Convoy Interrupts . | . . . Stealth | -11 -10 -10 --------- Run | Yrd Mat Min Distress Signals 1 | . 1 . Communications Jammed . | . . . Distress Signals . | . . . Times Spotted 30 | . 16 14 Peak Tracking Total 18 | . 5 18 Tactical Retreats 1 | . . 1 Traps | -11 -10 -10 ------- Run | Yrd Mat Min Traps Triggered 1 | . 1 . Indirectly . | . . . Trap Hack Attempts . | . . . Triggered . | . . . Disarmed . | . . . Reprogrammed . | . . . Reused . | . . . Traps Extracted . | . . . Installed . | . . . Triggered . | . . . Machines | -11 -10 -10 ---------- Run | Yrd Mat Min Machines Disabled 1 | . 1 . Max in Single Turn 1 | . 1 . Machines Repaired . | . . . Machines Dismantled . | . . . Machines Sabotaged . | . . . Overloaded Fab Kills . | . . . Hacking | -11 -10 -10 --------- Run | Yrd Mat Min Machines Accessed 8 | . 8 . Terminals 7 | . 7 . Fabricators . | . . . Repair Stations 1 | . 1 . Recycling Units . | . . . Scanalyzers . | . . . Garrison Access . | . . . Total Hacks 19 | . 19 . Successful 12 | . 12 . Failed 7 | . 7 . Catastrophic 2 | . 2 . Database Lockouts . | . . . Manual 13 | . 13 . Terminals 16 | . 16 . Fabricators . | . . . Repair Stations 3 | . 3 . Recycling Units . | . . . Scanalyzers . | . . . Garrison Access . | . . . Terminal Hacks 1 | . 1 . Locate Traps 1 | . 1 . Fabricator Hacks . | . . . Repair Station Hacks 2 | . 2 . Scan Component 1 | . 1 . Repair 1 | . 1 . Recycling Unit Hacks . | . . . Scanalyzer . | . . . Garrison Access Hacks . | . . . Unauthorized Hacks 9 | . 9 . Terminals 9 | . 9 . Assimilate 2 | . 2 . Botnet 6 | . 6 . Operators 1 | . 1 . Fabricators . | . . . Repair Stations . | . . . Recycling Units . | . . . Scanalyzers . | . . . Garrison Access . | . . . Data Cores Recovered . | . . . Used . | . . . Hacking Detections 8 | . 8 . Full Trace Events . | . . . Feedback Events . | . . . Feedback Blocked . | . . . Robot Schematics Acquired . | . . . Robots Built . | . . . Authchips . | . . . Time . | . . . Total Robot Build Rating . | . . . Part Schematics Acquired . | . . . Parts Built . | . . . Authchips . | . . . Time . | . . . Total Part Build Rating . | . . . Parts Repaired 1 | . 1 . Time 26 | . 26 . Parts Recycled . | . . . Recycled Matter . | . . . Retrieved Matter . | . . . Retrieved Components . | . . . Parts Scanalyzed . | . . . Part Schematics Acquired . | . . . Parts Damaged . | . . . Bothacking | -11 -10 -10 ------------ Run | Yrd Mat Min Used RIF Installer . | . . . Robots Hacked . | . . . Non-combat . | . . . Combat . | . . . Robot Hacks Applied . | . . . Relay Couplers Released . | . . . Fabnet Peak Effective % . | . . . Robots Rewired . | . . . Allies Hacked . | . . . Hacks Repelled . | . . . Allies | -11 -10 -10 -------- Run | Yrd Mat Min Total Allies 2 | . 1 1 Largest Group 1 | . 1 1 Highest-Rated Group 31 | . 10 31 Highest-Rated Ally 31 | . 10 31 Total Orders 2 | . 2 . STAY 1 | . 1 . FOLLOW 1 | . 1 . Ally Attacks 3 | . . 3 Total Damage 22 | . . 22 Kills 1 | . . 1 Allies Corrupted . | . . . Allies Melted . | . . . Intel | -11 -10 -10 ------- Run | Yrd Mat Min Robot Analysis Total . | . . . Derelict Logs Recovered . | . . . Drone Launches . | . . . Drone Recoveries . | . . . Exploration | -11 -10 -10 ------------- Run | Yrd Mat Min Turns Passed 947 | 66 799 82 Spaces Moved 552 | 44 457 51 Core 4 | 4 . . Treads . | . . . Legs 548 | 40 457 51 Wheels . | . . . Hover . | . . . Flight . | . . . Fastest Speed 50 | 50 120 120 Average Speed 119 | 117 120 120 Slowest Speed 190 | 120 190 120 Overloaded Moves . | . . . Propulsion Burnouts . | . . . Robots Hopped . | . . . Cave-ins Triggered . | . . . Exploration Rate (%) 32 | 4 77 16 Regions Visited 2 Branch Regions 1 Pre-discovered Areas . | . . . Known Exits Taken 1 | . 1 . Unknown Exits Taken 1 | 1 . . Scrap Searched . | . . . Spaces Dug . | . . . Terrain Destroyed . | . . . Melee . | . . . Projectile . | . . . AOE . | . . . Terrain Rammed . | . . . Walls Destroyed . | . . . Machines Disabled . | . . . Actions | -11 -10 -10 --------- Run | Yrd Mat Min Total 748 | 55 632 61 Wait 129 | 4 125 . Move 550 | 43 456 51 Hop . | . . . Pick Up 7 | 2 4 1 Fast Attach 12 | 6 6 . Attach 3 | . . 3 Detach . | . . . Swap 2 | . 2 . Drop 3 | . 3 . Fire 42 | . 36 6 Melee . | . . . Ram . | . . . Kick . | . . . Crush . | . . . Escape Stasis . | . . . Rewire . | . . . Trap . | . . . Miscellaneous . | . . . Route ------- -11/Scrapyard -10/Materials (discovered 4 exits: [*Mat x3] / *Min) -10/Mines History --------- Turn | Location | Event 15 | -11/Scrapyard | Discovered new exit (range 16) 67 | -11/Scrapyard | Entered Materials 304 | -10/Materials | Build established: Mutant 310 | -10/Materials | Discovered new exit (range 5) 572 | -10/Materials | Discovered new exit (range 8) 674 | -10/Materials | Discovered new exit (range 15) 712 | -10/Materials | Discovered new exit (range 7) 756 | -10/Materials | Repaired Aluminum Leg 865 | -10/Materials | Identified exit to Mines 866 | -10/Materials | Entered Mines 867 | -10/Mines | Met a Derelict testing a Signal Generator 874 | -10/Mines | Found Signal Generator 895 | -10/Mines | Assembled infested the area 900 | -10/Mines | Assisted by a Guerilla fighting off Assembled 942 | -10/Mines | Core integrity fell below 50% 946 | -10/Mines | Core integrity fell below 20% 948 | -10/Mines | Destroyed by as-45301 with Assembled F-torch Last Messages --------------- need to get out of here! I've been tracking a group of Assembled to figure out where they're coming from, and they're closing on this area, come on!" 00900_ F2-BIG(h): "I'll hold them off! Go on ahead or try to find another way!" 00905_ as-22760 knocked back. 00924_ Ion Engine destroyed. 00929_ Aluminum Leg destroyed. 00929_ Assault Rifle destroyed. 00931_ as-84329 destroyed. 00932_ as-22760 destroyed. 00935_ Assault Rifle destroyed. 00939_ Aluminum Leg destroyed. 00941_ as-75300 destroyed. 00942_ Acquired 4 matter. 00946_ Ion Engine destroyed. 00947_ Destroyed Asb. Hover Unit. 00947_ as-65691 destroyed. 00947_ Assault Rifle destroyed. Map ----- +----------------------------------------------------+ | ???????????????????????????????????????# ???????? | | ???????????????????????????????????????# #??????? | | ???????????????????????????????????????# #??????? | | ??????????????????????????????????????## ##?????? | | ??????????????????????????????????????? #?????? | | ??????????????????????????????????????? #?????? | | ???????????????????????????????????????? #?????? | | ???????????????????????????????????????? #?????? | | ????????????????????????????????????????# #?????? | | ????????????????????????????????????????# #?????? | | ????????????????????????????????????????# #?????? | | ????????????????????????????????????????# #?????? | | ????????????????????????????????????????# #?????? | | ????????????????????????????????????????# #?????? | | ????????????????????????????????????????# #?????? | | ????????????????????????????????????????# #?????? | | ????????????????????????????????????????# #?????? | | ????????????????????????????????????????# #?????? | | ????????????????????????????????????????# #?????? | | ???????????????????????????????????????## ##????? | | ???????????????????????????????###?????# ##???? | | ??????????????????????????????## ##???## ##??? | | ?????????????????????????????## #?### #??? | | ?????????????????????????????# ### ##?? | | ????????????????????????###??# ## #?? | | ???????????????????????##@#### #?? | | ???????????????????????#%%a## #? | | ???????????????????????# aa #? | | ???????????????????????# aa ##? | | ???????????????????????# a ## ##?? | | ???????????????????????# # #### ##??? | | ???????????????????????# ## #??## #######???? | | ???????????????????????# t### #???# ##?????????? | | ???????????????????????# #?# #???####??????????? | | ???????????????????????###??# ?????????????????? | | ????????????????????????????# #????????????????? | | ????????????????????????????# ##????????????????? | | ????????????????????????????####?????????????????? | | ?????????????????????????????????????????????????? | | ?????????????????????????????????????????????????? | | ?????????????????????????????????????????????????? | | ?????????????????????????????????????????????????? | | | | | | | | | | | | | | | | | +----------------------------------------------------+ Best States ------------- Heat Dissipation 25 Energy Generation 10 Energy Capacity 250 Matter Stores 300 Matter Capacity 300 Sight Range 16 Terrain Scan Range 14 Terrain Scan Density 10 Evasion (%) 55 Item Schematics ----------------- None Robot Schematics ------------------ None Fabricated ------------ Nothing Alien Tech Used ----------------- None Achievements -------------- None Challenges ------------ None Game ------ Seed MeleeControlReactor Manual? 0 Play Time 00:09:26 Cumulative 198.0 hours Start 2024.05.19 @ 22:04:50 End 2024.05.19 @ 22:12:46 Sessions 1 Manual Loads 0 Difficulty Rogue Special Mode None Game No. 190 Rogue 185 Adventurer 5 Explorer 0 Win Type - Total 3 Types 2/0/0/1/0/0/0/0/0 Lore% 54 Gallery% 77 Achievement% 56 Wizard Run 0 Options --------- Layout 2 ASCII 0 Keyboard 0 Movement Mouse Keybinds 0 Fullscreen 1 Font 24/Terminus Map View 50x44 Zoom Use 0% Tactical HUD 1 Map Filters NONE Filters NONE Steam 1 RUN: d0942cdf-8886-49c4-a4e1-add0a735fab3